Cogmind - Beta 14 @@@ ROGUE MODE // 2025.01.07 @ 22:27:38 Player: MadBadger Result: Destroyed by H-61 Shepherd with Heavy Assault Cannon Performance ------------- Evolutions (2) 1000 Regions Visited (4) 800 Robots Destroyed (58) 290 Value Destroyed (1582) 1582 Prototype IDs (1) 20 Alien Tech Used (0) 0 Bonus (0) 0 TOTAL SCORE: 3692 Bonus ------- None Cogmind --------- Core Integrity 0/550 Matter 18/300 Energy 100/100 System Corruption 0% Temperature Cool (0) Movement Walking (190) Ox1 Location -8/Materials Parts ------- > --- POWER (1) -------- (None) > --- PROPULSION (4) --- Aluminum Leg Aluminum Leg > --- UTILITY (2) ------ Large Storage Unit > --- WEAPON (4) ------- Grenade Launcher Axe > --- INVENTORY (15) --- Improved Ion Engine Light Nuclear Core Aerolev Unit Improved Signal Interpreter Recalibrator Grenade Launcher Improved Datajack Improved Datajack Improved Datajack Mining Laser Axe Axe Axe Peak State ------------ > --- POWER ------------ Light Nuclear Core > --- PROPULSION ------- Aluminum Leg Aluminum Leg Aluminum Leg Airjet > --- UTILITY ---------- Large Storage Unit > --- WEAPON ----------- High-powered Shotgun Assault Cannon Axe Axe > --- INVENTORY -------- Improved Ion Engine Light Nuclear Core Aerolev Unit Improved Signal Interpreter Recalibrator Grenade Launcher Grenade Launcher Rocket Launcher Improved Datajack Improved Datajack Improved Datajack Mining Laser Axe Axe Axe [Rating: 25] Favorites ----------- Power Improved Ion Engine Engine Improved Ion Engine Power Core Light Nuclear Core Propulsion Aluminum Leg Leg Aluminum Leg Wheel Compact Wheel Hover Unit Airjet Utility Large Storage Unit Device Improved Terrain Scanner Storage Large Storage Unit Processor Terrain Scan Processor Weapon Heavy Assault Rifle Energy Gun Beam Rifle Ballistic Gun Heavy Assault Rifle Ballistic Cannon Assault Cannon Launcher Grenade Launcher Slashing Weapon Axe Special Melee Weapon Improved Datajack Build | -11 -10 -9 -9 -8 ------- Run | Yrd Mat Mat Min Mat Slots Evolved 4 | . . 2 . 2 Power . | . . . . . Propulsion 2 | . . 1 . 1 Utility . | . . . . . Weapon 2 | . . 1 . 1 Parts Attached 52 | 6 8 17 2 19 Power 5 | 1 1 1 . 2 Engine 4 | 1 1 1 . 1 Core 1 | . . . . 1 Reactor . | . . . . . Propulsion 17 | 2 1 6 1 7 Treads . | . . . . . Leg 13 | 2 1 4 1 5 Wheel 2 | . . 2 . . Hover 2 | . . . . 2 Flight . | . . . . . Utility 5 | 1 2 1 1 . Device 1 | . . . 1 . Storage 3 | 1 2 . . . Processor 1 | . . 1 . . Hackware . | . . . . . Protection . | . . . . . Artifact . | . . . . . Weapon 25 | 2 4 9 . 10 Energy Gun 5 | . 2 2 . 1 Energy Cannon . | . . . . . Ballistic Gun 11 | 2 2 6 . 1 Ballistic Cannon 1 | . . . . 1 Launcher 5 | . . . . 5 Special Weapon . | . . . . . Impact Weapon . | . . . . . Slashing Weapon 2 | . . . . 2 Piercing Weapon . | . . . . . Special Melee Weapon 1 | . . 1 . . Unidentified Prototypes 1 | . . . . 1 Parts Lost 29 | . 4 9 . 16 Power 4 | . . 1 . 3 Propulsion 11 | . 2 3 . 6 Utility 1 | . . . . 1 Weapon 13 | . 2 5 . 6 Highest Loss Streak 10 | . 3 2 . 10 To Critical Strikes 1 | . . . . 1 Average Slot Usage (%) 81 | . 76 76 98 85 Engine 10 | . 14 10 11 5 Leg 22 | . 20 15 31 29 Wheel 2 | . . 7 . . Device 1 | . . . 2 5 Storage 11 | . 14 11 11 9 Processor 1 | . . 1 8 . Energy Gun 5 | . 9 4 . 5 Ballistic Gun 21 | . 18 22 33 18 Slashing Weapon 1 | . . . . 4 Special Melee Weapon 1 | . . 2 . . Peak Build Rating 25 | 6 8 17 18 25 Average Rating 12 | 4 6 12 17 19 On Entrance 9 | . 6 7 16 18 Naked Turns . | . . . . . Heaviest Build 40 | 11 29 36 37 40 Greatest Support 40 | 20 20 32 30 40 Greatest Overweight (x) 10 | . 2 10 1 7 Average Overweight (x) . | . . 1 1 . Largest Inventory Capacity 15 | 8 15 15 15 15 Average Capacity 14 | 6 12 15 15 15 Most Carried 15 | 4 13 15 15 15 Average Carried 11 | 2 7 13 14 13 Final Capacity 15 | 8 15 15 15 15 Final Carried 15 | 4 10 15 15 13 Class Distribution -------------------- 53% | Mutant 23% | Scavenger-Gunner 15% | Scavenger-Skirmisher 6% | Gunner Dominant Class ---------------- Mutant | -10/Materials Scavenger-Gunner | -9/Materials Scavenger-Gunner | -9/Mines Scavenger-Skirmisher | -8/Materials Resources | -11 -10 -9 -9 -8 ----------- Run | Yrd Mat Mat Min Mat Matter Collected 1231 | 260 175 474 60 262 Remotely . | . . . . . Salvage Created 1687 | . 265 919 20 483 Parts 123 | . 27 62 . 34 Haulers Intercepted . | . . . . . Recyclers Shooed . | . . . . . Parts Field Recycled . | . . . . . Retrieved Matter . | . . . . . Parts Self-Destructed . | . . . . . Prevented . | . . . . . Kills | -11 -10 -9 -9 -8 ------- Run | Yrd Mat Mat Min Mat Combat Hostiles Destroyed 47 | . 8 17 2 20 Melee 1 | . . . . 1 Guns 40 | . 8 17 2 13 AOE 6 | . . . . 6 Classes Destroyed 10 | . 5 3 1 1 Worker 2 | . . 2 . . Mechanic 1 | . 1 . . . Operator 2 | . 1 1 . . Watcher 8 | . 1 4 . 3 Swarmer 16 | . 5 . . 11 Grunt 17 | . 3 9 . 5 Brawler 1 | . . 1 . . Sentry 10 | . . 7 . 3 Hunter 1 | . . . . 1 Assembled 2 | . . . 2 . Best Kill Streak 6 | . 3 3 1 6 Combat Bots Only 5 | . 2 1 1 5 Max Kills in Single Turn 2 | . 1 1 1 2 Gunslinging . | . . . . . Exploded 2 | . . . . 2 Melee 1 | . . . . 1 Uniques/NPCs Destroyed . | . . . . . Combat | -11 -10 -9 -9 -8 -------- Run | Yrd Mat Mat Min Mat Hostile Shots Fired 428 | . 96 127 4 201 Missed 120 | . 26 39 . 55 Damage Taken 3785 | . 622 1148 56 1959 Core 895 | . 133 165 14 583 Absorbed by Shields . | . . . . . Core Remaining (%) 67 | 100 46 . 55 . Volleys Fired 201 | . 52 98 4 47 Largest 4 | . 2 3 3 4 Hottest 135 | . 60 135 69 125 Shots Fired 440 | . 94 199 12 135 Gun 428 | . 94 199 12 123 Cannon . | . . . . . Launcher 12 | . . . . 12 Special . | . . . . . Kinetic 341 | . 79 156 12 94 Thermal 87 | . 15 43 . 29 Explosive 12 | . . . . 12 Electromagnetic . | . . . . . Robot Hit Streak 19 | . 9 19 5 11 Robot Miss Streak 9 | . 5 4 1 9 Penetration Max . | . . . . . Secondary Targets 4 | . . 1 . 3 Max Gunslinging Chain 1 | . . 1 . 1 Shots Hit Robots 263 | . 52 136 7 68 Core Hits 122 | . 24 49 3 46 Critical Kills . | . . . . . Critical Parts Destroyed 1 | . . 1 . . Critical Strikes 9 | . . 2 . 7 Burn 3 | . . 1 . 2 Destroy 1 | . . 1 . . Sever 5 | . . . . 5 Melee Attacks 18 | . . 1 . 17 Impact . | . . . . . Slashing 17 | . . . . 17 Piercing . | . . . . . Sneak Attacks 1 | . . 1 . . Combat Hostiles . | . . . . . Follow-up Attacks 3 | . . . . 3 Damage Inflicted 4280 | . 502 1620 105 2053 Guns 2972 | . 502 1616 105 749 Cannons . | . . . . . Explosions 952 | . . . . 952 Melee 350 | . . . . 350 Ramming 6 | . . 4 . 2 Kinetic 2368 | . 416 1215 105 632 Thermal 604 | . 86 401 . 117 Explosive 952 | . . . . 952 Electromagnetic . | . . . . . Impact . | . . . . . Slashing 350 | . . . . 350 Piercing . | . . . . . Highest Corruption . | . . . . . Average Corruption . | . . . . . Corruption Purged . | . . . . . Corruption Blocked . | . . . . . Overload Shots . | . . . . . Overflow Damage . | . . . . . Projectiles . | . . . . . Explosions . | . . . . . Melee . | . . . . . Knockbacks . | . . . . . Impact . | . . . . . Kinetic . | . . . . . Secondary . | . . . . . Self-Inflicted Damage . | . . . . . Shots . | . . . . . Rammed . | . . . . . Targets Rammed 4 | . . 1 . 3 Kicked 4 | . . 1 . 3 Crushed . | . . . . . Highest Temperature 240 | . 20 138 9 240 Average Temperature 41 | . 12 28 4 69 Received Heat Transfer 1128 | . 84 504 . 540 Siege Activations . | . . . . . Robots Corrupted . | . . . . . Combat Hostiles . | . . . . . Parts Fried . | . . . . . Impact Corruptions . | . . . . . Robots Melted . | . . . . . Combat Hostiles . | . . . . . Parts Melted 2 | . 1 1 . . Heat Transferred 1696 | . 200 1052 . 444 Parts Sabotaged . | . . . . . Parts Stolen . | . . . . . Parts Stripped . | . . . . . Power Chain Reactions . | . . . . . Alert | -11 -10 -9 -9 -8 ------- Run | Yrd Mat Mat Min Mat Peak Influence 372 | . 126 165 31 372 Initial 31 | . . . 31 . Average 92 | . 53 77 23 196 Maximum Alert Level 1 | . . . . 1 Low Security (%) 88 | 100 100 100 100 49 Level 1 11 | . . . . 50 Level 2 . | . . . . . Level 3 . | . . . . . Level 4 . | . . . . . Level 5 . | . . . . . High Security . | . . . . . Max Security . | . . . . . Squads Dispatched 12 | . 1 5 . 6 Investigation 2 | . . 2 . . Extermination . | . . . . . Reinforcement 9 | . 1 3 . 5 Assault . | . . . . . Garrison 1 | . . . . 1 Intercept . | . . . . . Searches Triggered . | . . . . . Construction Impeded 1 | . . . . 1 Haulers Reinforced . | . . . . . Active Scanning Responses . | . . . . . Cargo Convoy Interrupts . | . . . . . Stealth | -11 -10 -9 -9 -8 --------- Run | Yrd Mat Mat Min Mat Distress Signals 7 | . . 4 . 3 Communications Jammed . | . . . . . Distress Signals . | . . . . . Times Spotted 85 | . 20 30 2 33 Peak Tracking Total 7 | . 4 3 2 7 Tactical Retreats 8 | . 1 2 . 5 Traps | -11 -10 -9 -9 -8 ------- Run | Yrd Mat Mat Min Mat Traps Triggered 3 | . 1 2 . . Indirectly . | . . . . . Trap Hack Attempts 9 | . . 9 . . Triggered . | . . . . . Disarmed 2 | . . 2 . . Reprogrammed . | . . . . . Reused . | . . . . . Traps Extracted . | . . . . . Installed . | . . . . . Triggered . | . . . . . Machines | -11 -10 -9 -9 -8 ---------- Run | Yrd Mat Mat Min Mat Machines Disabled 2 | . . 1 . 1 Max in Single Turn 1 | . . 1 . 1 Machines Repaired . | . . . . . Machines Dismantled . | . . . . . Machines Sabotaged . | . . . . . Overloaded Fab Kills . | . . . . . Hacking | -11 -10 -9 -9 -8 --------- Run | Yrd Mat Mat Min Mat Machines Accessed . | . . . . . Terminals . | . . . . . Fabricators . | . . . . . Repair Stations . | . . . . . Recycling Units . | . . . . . Scanalyzers . | . . . . . Garrison Access . | . . . . . Total Hacks . | . . . . . Successful . | . . . . . Failed . | . . . . . Catastrophic . | . . . . . Database Lockouts . | . . . . . Manual . | . . . . . Terminals . | . . . . . Fabricators . | . . . . . Repair Stations . | . . . . . Recycling Units . | . . . . . Scanalyzers . | . . . . . Garrison Access . | . . . . . Terminal Hacks . | . . . . . Fabricator Hacks . | . . . . . Repair Station Hacks . | . . . . . Recycling Unit Hacks . | . . . . . Scanalyzer . | . . . . . Garrison Access Hacks . | . . . . . Unauthorized Hacks . | . . . . . Terminals . | . . . . . Fabricators . | . . . . . Repair Stations . | . . . . . Recycling Units . | . . . . . Scanalyzers . | . . . . . Garrison Access . | . . . . . Data Cores Recovered 2 | . 1 1 . . Used . | . . . . . Hacking Detections . | . . . . . Full Trace Events . | . . . . . Feedback Events . | . . . . . Feedback Blocked . | . . . . . Robot Schematics Acquired . | . . . . . Robots Built . | . . . . . Authchips . | . . . . . Time . | . . . . . Total Robot Build Rating . | . . . . . Part Schematics Acquired . | . . . . . Parts Built . | . . . . . Authchips . | . . . . . Time . | . . . . . Total Part Build Rating . | . . . . . Parts Repaired . | . . . . . Time . | . . . . . Parts Recycled . | . . . . . Recycled Matter . | . . . . . Retrieved Matter . | . . . . . Retrieved Components . | . . . . . Parts Scanalyzed . | . . . . . Part Schematics Acquired . | . . . . . Parts Damaged . | . . . . . Bothacking | -11 -10 -9 -9 -8 ------------ Run | Yrd Mat Mat Min Mat Used RIF Installer . | . . . . . Robots Hacked . | . . . . . Non-combat . | . . . . . Combat . | . . . . . Robot Hacks Applied . | . . . . . Relay Couplers Released . | . . . . . Fabnet Peak Effective % . | . . . . . Robots Rewired . | . . . . . Allies Hacked . | . . . . . Hacks Repelled . | . . . . . Allies | -11 -10 -9 -9 -8 -------- Run | Yrd Mat Mat Min Mat Total Allies . | . . . . . Largest Group . | . . . . . Highest-Rated Group . | . . . . . Highest-Rated Ally . | . . . . . Total Orders . | . . . . . Ally Attacks . | . . . . . Total Damage . | . . . . . Kills . | . . . . . Allies Corrupted . | . . . . . Allies Melted . | . . . . . Intel | -11 -10 -9 -9 -8 ------- Run | Yrd Mat Mat Min Mat Robot Analysis Total . | . . . . . Derelict Logs Recovered . | . . . . . Drone Launches . | . . . . . Drone Recoveries . | . . . . . Exploration | -11 -10 -9 -9 -8 ------------- Run | Yrd Mat Mat Min Mat Turns Passed 4698 | 80 1226 1769 516 1107 Spaces Moved 2277 | 60 562 806 249 600 Core 15 | 6 . 3 . 6 Treads . | . . . . . Legs 1860 | 54 562 407 249 588 Wheels 396 | . . 396 . . Hover 6 | . . . . 6 Flight . | . . . . . Fastest Speed 50 | 50 120 100 190 120 Average Speed 164 | 113 186 164 190 139 Slowest Speed 550 | 120 260 550 190 400 Overloaded Moves . | . . . . . Propulsion Burnouts . | . . . . . Robots Hopped . | . . . . . Cave-ins Triggered . | . . . . . Exploration Rate (%) 40 | 5 65 39 55 36 Regions Visited 4 Branch Regions 1 Pre-discovered Areas . | . . . . . Known Exits Taken . | . . . . . Unknown Exits Taken 4 | 1 1 1 1 . Scrap Searched . | . . . . . Spaces Dug . | . . . . . Terrain Destroyed 52 | . . . . 52 Melee . | . . . . . Projectile . | . . . . . AOE 52 | . . . . 52 Terrain Rammed . | . . . . . Walls Destroyed . | . . . . . Machines Disabled . | . . . . . Actions | -11 -10 -9 -9 -8 --------- Run | Yrd Mat Mat Min Mat Total 2865 | 69 661 1089 287 759 Wait 247 | . 21 140 23 63 Move 2273 | 59 561 805 248 600 Hop . | . . . . . Pick Up 35 | 4 10 10 5 6 Fast Attach 32 | 6 5 12 1 8 Attach 20 | . 3 5 1 11 Detach 13 | . 4 3 1 5 Swap . | . . . . . Drop 18 | . 5 5 4 4 Fire 201 | . 52 98 4 47 Melee 13 | . . 1 . 12 Ram . | . . . . . Kick 4 | . . 1 . 3 Crush . | . . . . . Escape Stasis . | . . . . . Rewire . | . . . . . Trap 9 | . . 9 . . Miscellaneous . | . . . . . Route ------- -11/Scrapyard -10/Materials (discovered 3 exits: [*Mat x2] / [*Min]) -9/Materials -9/Mines (discovered 2 exits: [*Mat x2]) -8/Materials History --------- Turn | Location | Event 7 | -11/Scrapyard | Discovered new exit (range 14) 81 | -11/Scrapyard | Entered Materials 329 | -10/Materials | Build established: Mutant 409 | -10/Materials | Discovered new exit (range 6) 523 | -10/Materials | Lost 3 parts (1n2w) 679 | -10/Materials | Core integrity fell below 50% 793 | -10/Materials | Discovered new exit (range 15) 1244 | -10/Materials | Discovered new exit (range 16) 1307 | -10/Materials | Entered another Materials area 1307 | -9/Materials | Evolved 2 slots: Propulsion x1, Weapon x1 2464 | -9/Materials | Build established: Scavenger-Gunner 2492 | -9/Materials | Discovered new exit (range 16) 3076 | -9/Materials | Entered Mines 3090 | -9/Mines | Met a Derelict bent on vengeance 3118 | -9/Mines | Received a Rocket Launcher from a helpful Derelict 3184 | -9/Mines | Assembled infested the area 3412 | -9/Mines | Discovered new exit (range 8) 3527 | -9/Mines | Discovered new exit (range 5) 3528 | -9/Mines | A Derelict revealed a hidden shortcut to a safe place 3592 | -9/Mines | Entered Materials 3592 | -8/Materials | Evolved 2 slots: Propulsion x1, Weapon x1 3791 | -8/Materials | Build established: Scavenger-Skirmisher 4276 | -8/Materials | Core integrity fell below 50% 4303 | -8/Materials | Lost 10 parts (1p4n1u4w) 4555 | -8/Materials | Build established: Mutant 4668 | -8/Materials | Core integrity fell below 20% 4673 | -8/Materials | Garrison activated, responded to threat 4699 | -8/Materials | Destroyed by H-61 Shepherd with Heavy Assault Cannon Last Messages --------------- area. 04688_ Axe destroyed. 04689_ Critical hit (Burn: +37). 04689_ Penetrated by Slug. 04690_ Y-45 Defender destroyed. 04690_ G-47 Trooper destroyed. 04691_ Penetrated by Slug. 04692_ U-05 Engineer lays Concrete. 04693_ G-50 Soldier destroyed. 04693_ G-47 Trooper destroyed. 04693_ X-62 Marksman knocked back. 04694_ Penetrated by Slug. 04694_ Rocket Launcher destroyed. 04696_ The unstable cave ceiling collapses. 04696_ Slug penetrates Wall. 04697_ The unstable cave ceiling collapses. 04697_ Material Processor disabled. 04698_ ALERT: Construction progress impeded, dispatching reinforcements to local area. 04699_ Penetrated by Slug. Map ----- +----------------------------------------------------+ | ?????????????????????????????????????????????? | | ?????????????????????????????????????????????? | | ?????????????????????????????????????????????? | | ?????????????????????????????????????????????? | | ?????????????????????????????????????????????? | | ?????????????????????????????????????????????? | | ?????????????????????????????????????????????? | | ?????????????????????????????????????????????? | | ?????????????????????????????????????????????? | | ?????????????????????????????????????????????? | | ??????????????????????? ???????????????????? | | ????????????????????? # ???????????????????? | | ???????????????????? # ?#?????????????????? | | ????????????????????# # ?????????????????? | | ???????????????###### / ?????????????????? | | ???????????????? #?????????????????? | | ????????????????? ?????????????????? | | ?????????????????? ?????????????????? | | ?????????????????#+ # ?????????????????? | | ?????????????????? H ??????????????????? | | ??????????????????? ??????????????????? | | ???????????????????? ??????????????????? | | ????????????????????? u ??????????????????? | | ??????????????????????# #??????????????????? | | ??????????????????????# ][#??????????????????? | | ??????????????????????#==@#??????????????????? | | ??????????????????######x####????????????????? | | ###???????????????# x%! #????????????????? | | ????????????????# #????????????????? | | ??????????????????# " " !#????????????????? | | ??????????????????# """"" #????????????????? | | ??#???????????????# """"" #????????????????? | | ??????????????????# """"" #????????????????? | | ??????????????????# """ #????????????????? | | ???#??????????????#! #????????????????? | | ??????????????????#########+########?????????? | | ????????????????????# ## # #?????????? | | ? ???#?????????????# # # """ #?????????? | | ?? ?????????????????# + # "G" #?????????? | | ????????????????????# # + " " #?????????? | | ???###########+###### # # #?????????? | | #### """ + # # # [#?????????? | | # """"" ## # # #####+##?????????? | | # """"" #????# + # #???# #??????????? | | """"" #????# [# # ########?????????? | | """ #????# ###### # #?????????? | | # ###### # """ #?????????? | | # + * = # """ #?????????? | | # # =! # ^""" #?????????? | | #" + #?????????? | +----------------------------------------------------+ Best States ------------- Heat Dissipation 31 Energy Generation 14 Energy Capacity 265 Matter Stores 300 Matter Capacity 300 Sight Range 16 Terrain Scan Range 16 Terrain Scan Density 85 Evasion (%) 55 Item Schematics ----------------- None Robot Schematics ------------------ None Fabricated ------------ Nothing Alien Tech Used ----------------- None Achievements -------------- None Challenges ------------ None Game ------ Seed TacticalWarpProtomatter Manual? 0 Play Time 00:28:37 Cumulative 18.4 hours Start 2025.01.07 @ 21:58:31 End 2025.01.07 @ 22:27:38 Sessions 1 Manual Loads 0 Difficulty Rogue Special Mode None Game No. 35 Rogue 35 Adventurer 0 Explorer 0 Win Type - Total 0 Types 0/0/0/0/0/0/0/0/0 Lore% 7 Gallery% 13 Achievement% 14 Wizard Run 0 Options --------- Layout 0 ASCII 0 Keyboard 1 Movement Numpad Keybinds 0 Fullscreen 1 Font 24/Smallcaps Map View 76x50 Zoom Use 0% Tactical HUD 1 Map Filters NONE Filters NONE Steam 1 RUN: 208713d2-7375-4b64-be79-441dfab4c963